Cogmind - Beta 13 @@@ ROGUE MODE // 2024.05.19 @ 20:09:43 Player: lucky255 Result: Destroyed by D-53 Grenadier with Mini Grenade Launcher Performance ------------- Evolutions (0) 0 Regions Visited (2) 400 Robots Destroyed (24) 120 Value Destroyed (364) 364 Prototype IDs (2) 40 Alien Tech Used (0) 0 Bonus (-12) -12 TOTAL SCORE: 912 Bonus ------- Friendly Fire -12 Cogmind --------- Core Integrity 0/250 Matter 177/300 Energy 84/100 System Corruption 2% Temperature Cool (0) Movement Core (450) Ox8 Location -10/Mines Parts ------- > --- POWER (1) -------- (None) > --- PROPULSION (2) --- (None) > --- UTILITY (2) ------ Large Storage Unit Structural Scanner > --- WEAPON (2) ------- Assault Rifle Heavy Assault Rifle > --- INVENTORY (15) --- Light Treads Light Treads Light Treads Light Treads Heat Sink Visual Processing Unit Sensor Array Signal Interpreter Transport Network Coupler Targeting Computer Light Armor Plating Hacking Suite Medium Laser Peak State ------------ > --- POWER ------------ Light Ion Engine > --- PROPULSION ------- Light Treads Light Treads > --- UTILITY ---------- Large Storage Unit Improved Terrain Scanner > --- WEAPON ----------- Assault Rifle Heavy Assault Rifle > --- INVENTORY -------- Light Ion Engine Light Treads Light Treads Light Treads Light Treads Heat Sink Structural Scanner Visual Processing Unit Sensor Array Signal Interpreter Transport Network Coupler Core Shielding Hacking Suite Grenade Launcher Rocket Launcher [Rating: 11] Favorites ----------- Power Light Ion Engine Engine Light Ion Engine Propulsion Light Treads Treads Light Treads Leg Aluminum Leg Utility Large Storage Unit Device Sensor Array Storage Large Storage Unit Protection Core Shielding Weapon Assault Rifle Energy Gun Medium Laser Ballistic Gun Assault Rifle Launcher Grenade Launcher Build | -11 -10 -10 ------- Run | Yrd Mat Min Slots Evolved . | . . . Power . | . . . Propulsion . | . . . Utility . | . . . Weapon . | . . . Parts Attached 23 | . 13 10 Power . | . . . Engine . | . . . Core . | . . . Reactor . | . . . Propulsion 4 | . 4 . Treads 4 | . 4 . Leg . | . . . Wheel . | . . . Hover . | . . . Flight . | . . . Utility 7 | . 5 2 Device 4 | . 2 2 Storage 2 | . 2 . Processor . | . . . Hackware . | . . . Protection 1 | . 1 . Artifact . | . . . Weapon 12 | . 4 8 Energy Gun 2 | . 1 1 Energy Cannon . | . . . Ballistic Gun 5 | . 2 3 Ballistic Cannon . | . . . Launcher 5 | . 1 4 Special Weapon . | . . . Impact Weapon . | . . . Slashing Weapon . | . . . Piercing Weapon . | . . . Special Melee Weapon . | . . . Unidentified Prototypes . | . . . Parts Lost 6 | . . 6 Power 1 | . . 1 Propulsion 2 | . . 2 Utility . | . . . Weapon 3 | . . 3 Highest Loss Streak 5 | . . 5 To Critical Strikes . | . . . Average Slot Usage (%) 99 | . 99 98 Engine 13 | . 14 13 Treads 23 | . 21 27 Leg 4 | . 6 . Device 11 | . 9 14 Storage 14 | . 14 14 Protection 2 | . 3 . Energy Gun 1 | . 2 . Ballistic Gun 25 | . 25 25 Naked Turns . | . . . Heaviest Build 31 | 11 29 31 Greatest Support 40 | 20 40 40 Greatest Overweight (x) . | . . . Average Overweight (x) . | . . . Largest Inventory Capacity 15 | 8 15 15 Average Capacity 13 | 8 13 15 Most Carried 15 | 6 15 15 Average Carried 12 | 6 11 14 Final Capacity 15 | 8 15 15 Final Carried 15 | 6 15 13 Class Distribution -------------------- 100% | Mutant Dominant Class ---------------- Mutant | -10/Materials Mutant | -10/Mines Resources | -11 -10 -10 ----------- Run | Yrd Mat Min Matter Collected 647 | 200 281 166 Remotely . | . . . Salvage Created 563 | . 378 185 Parts 44 | . 25 19 Haulers Intercepted 2 | . 2 . Recyclers Shooed 2 | . 2 . Parts Field Recycled . | . . . Retrieved Matter . | . . . Parts Self-Destructed . | . . . Prevented . | . . . Kills | -11 -10 -10 ------- Run | Yrd Mat Min Combat Hostiles Destroyed 17 | . 7 10 Guns 7 | . 4 3 AOE 10 | . 3 7 Classes Destroyed 10 | . 6 4 Worker 1 | . . 1 Tunneler 3 | . . 3 Hauler 2 | . 2 . Recycler 1 | . 1 . Operator 1 | . 1 . Watcher 2 | . 2 . Swarmer 9 | . 3 6 Grunt 4 | . 4 . Sentry 1 | . . 1 Assembled 3 | . . 3 Best Kill Streak 5 | . 3 5 Combat Bots Only 4 | . 3 4 Max Kills in Single Turn 3 | . 3 3 Gunslinging . | . . . Exploded 3 | . 3 3 Melee . | . . . Uniques/NPCs Destroyed . | . . . Combat | -11 -10 -10 -------- Run | Yrd Mat Min Hostile Shots Fired 69 | . 26 43 Missed 14 | . 5 9 Damage Taken 1046 | . 254 792 Core 265 | . 29 236 Absorbed by Shields . | . . . Core Remaining (%) 100 | 100 . . Volleys Fired 53 | . 29 24 Largest 2 | . 2 2 Hottest 70 | . 70 56 Shots Fired 95 | . 57 38 Gun 82 | . 56 26 Cannon . | . . . Launcher 13 | . 1 12 Special . | . . . Kinetic 78 | . 52 26 Thermal 4 | . 4 . Explosive 13 | . 1 12 Electromagnetic . | . . . Robot Hit Streak 10 | . 10 8 Robot Miss Streak 3 | . 2 3 Penetration Max . | . . . Secondary Targets . | . . . Shots Hit Robots 58 | . 37 21 Core Hits 49 | . 23 26 Critical Kills . | . . . Critical Parts Destroyed . | . . . Critical Strikes . | . . . Melee Attacks . | . . . Impact . | . . . Slashing . | . . . Piercing . | . . . Sneak Attacks . | . . . Combat Hostiles . | . . . Follow-up Attacks . | . . . Damage Inflicted 1448 | . 614 834 Guns 730 | . 480 250 Cannons . | . . . Explosions 689 | . 113 576 Melee . | . . . Ramming 29 | . 21 8 Kinetic 719 | . 469 250 Thermal 11 | . 11 . Explosive 689 | . 113 576 Electromagnetic . | . . . Impact . | . . . Slashing . | . . . Piercing . | . . . Highest Corruption 2 | . 2 2 Average Corruption 2 | . 2 2 Corruption Purged . | . . . Corruption Blocked . | . . . Effects 14 | . 5 9 Message Errors 7 | . 3 4 Matter Fused 2 | . 1 1 Heat Flow Errors 1 | . 1 . Energy Discharges 1 | . . 1 Data Loss (major) 1 | . . 1 Misfires 2 | . . 2 Overload Shots . | . . . Overflow Damage 20 | . . 20 Projectiles . | . . . Explosions 20 | . . 20 Melee . | . . . Knockbacks 1 | . . 1 Impact 1 | . . 1 Kinetic . | . . . Secondary . | . . . Self-Inflicted Damage 53 | . . 53 Shots 2 | . . 2 Rammed 4 | . 3 1 Targets Rammed 4 | . 3 1 Kicked . | . . . Crushed . | . . . Highest Temperature 101 | . 101 . Average Temperature 21 | . 21 . Received Heat Transfer 180 | . 135 45 Siege Activations . | . . . Robots Corrupted . | . . . Combat Hostiles . | . . . Parts Fried . | . . . Impact Corruptions . | . . . Robots Melted . | . . . Combat Hostiles . | . . . Parts Melted . | . . . Heat Transferred 25 | . 25 . Parts Sabotaged . | . . . Parts Stolen . | . . . Parts Stripped . | . . . Power Chain Reactions . | . . . Alert | -11 -10 -10 ------- Run | Yrd Mat Min Peak Influence 181 | . 181 139 Initial . | . . . Average 43 | . 35 55 Maximum Alert Level . | . . . Low Security (%) 100 | 100 100 100 Level 1 . | . . . Level 2 . | . . . Level 3 . | . . . Level 4 . | . . . Level 5 . | . . . High Security . | . . . Max Security . | . . . Squads Dispatched 2 | . 2 . Investigation 1 | . 1 . Extermination . | . . . Reinforcement 1 | . 1 . Assault . | . . . Garrison . | . . . Intercept . | . . . Searches Triggered . | . . . Construction Impeded . | . . . Haulers Reinforced . | . . . Active Scanning Responses . | . . . Cargo Convoy Interrupts . | . . . Stealth | -11 -10 -10 --------- Run | Yrd Mat Min Distress Signals 2 | . 2 . Communications Jammed . | . . . Distress Signals . | . . . Times Spotted 30 | . 16 14 Peak Tracking Total 5 | . 4 5 Tactical Retreats . | . . . Traps | -11 -10 -10 ------- Run | Yrd Mat Min Traps Triggered 2 | . 2 . Indirectly . | . . . Trap Hack Attempts . | . . . Triggered . | . . . Disarmed . | . . . Reprogrammed . | . . . Reused . | . . . Traps Extracted . | . . . Installed . | . . . Triggered . | . . . Machines | -11 -10 -10 ---------- Run | Yrd Mat Min Machines Disabled . | . . . Max in Single Turn . | . . . Machines Repaired . | . . . Machines Dismantled . | . . . Machines Sabotaged . | . . . Overloaded Fab Kills . | . . . Hacking | -11 -10 -10 --------- Run | Yrd Mat Min Machines Accessed 6 | . 5 1 Terminals 3 | . 3 . Fabricators . | . . . Repair Stations . | . . . Recycling Units 2 | . 2 . Scanalyzers . | . . . Garrison Access . | . . . Total Hacks 11 | . 10 1 Successful 8 | . 7 1 Failed 3 | . 3 . Catastrophic 1 | . 1 . Database Lockouts . | . . . Manual 7 | . 7 . Terminals 7 | . 7 . Fabricators . | . . . Repair Stations . | . . . Recycling Units 3 | . 3 . Scanalyzers . | . . . Garrison Access . | . . . Terminal Hacks 4 | . 3 1 Robot Analysis 1 | . 1 . Prototype ID Bank 1 | . 1 . Open Door 1 | . . 1 Hauler Manifests 1 | . 1 . Fabricator Hacks . | . . . Repair Station Hacks . | . . . Recycling Unit Hacks 3 | . 3 . Report Inventory 2 | . 2 . Retrieve Components 1 | . 1 . Scanalyzer . | . . . Garrison Access Hacks . | . . . Unauthorized Hacks 1 | . 1 . Terminals 1 | . 1 . Botnet 1 | . 1 . Fabricators . | . . . Repair Stations . | . . . Recycling Units . | . . . Scanalyzers . | . . . Garrison Access . | . . . Data Cores Recovered . | . . . Used . | . . . Hacking Detections 4 | . 4 . Full Trace Events . | . . . Feedback Events . | . . . Feedback Blocked . | . . . Robot Schematics Acquired . | . . . Robots Built . | . . . Authchips . | . . . Time . | . . . Total Robot Build Rating . | . . . Part Schematics Acquired . | . . . Parts Built . | . . . Authchips . | . . . Time . | . . . Total Part Build Rating . | . . . Parts Repaired . | . . . Time . | . . . Parts Recycled . | . . . Recycled Matter . | . . . Retrieved Matter . | . . . Retrieved Components 10 | . 10 . Parts Scanalyzed . | . . . Part Schematics Acquired . | . . . Parts Damaged . | . . . Bothacking | -11 -10 -10 ------------ Run | Yrd Mat Min Used RIF Installer . | . . . Robots Hacked . | . . . Non-combat . | . . . Combat . | . . . Robot Hacks Applied . | . . . Relay Couplers Released . | . . . Fabnet Peak Effective % . | . . . Robots Rewired . | . . . Allies Hacked . | . . . Hacks Repelled . | . . . Allies | -11 -10 -10 -------- Run | Yrd Mat Min Total Allies 1 | . . 1 Largest Group 1 | . . 1 Highest-Rated Group 31 | . . 31 Highest-Rated Ally 31 | . . 31 Total Orders . | . . . Ally Attacks . | . . . Total Damage . | . . . Kills . | . . . Allies Corrupted . | . . . Allies Melted . | . . . Intel | -11 -10 -10 ------- Run | Yrd Mat Min Robot Analysis Total 1 | . 1 . Derelict Logs Recovered 1 | . . 1 Drone Launches . | . . . Drone Recoveries . | . . . Exploration | -11 -10 -10 ------------- Run | Yrd Mat Min Turns Passed 2000 | 2 1250 748 Spaces Moved 1139 | 2 733 404 Core . | . . . Treads 918 | . 514 404 Legs 221 | 2 219 . Wheels . | . . . Hover . | . . . Flight . | . . . Fastest Speed 120 | 120 120 160 Average Speed 152 | 120 148 160 Slowest Speed 160 | 120 160 160 Overloaded Moves . | . . . Propulsion Burnouts . | . . . Robots Hopped . | . . . Cave-ins Triggered . | . . . Exploration Rate (%) 49 | 2 78 69 Regions Visited 2 Branch Regions 1 Pre-discovered Areas . | . . . Known Exits Taken . | . . . Unknown Exits Taken 2 | 1 1 . Scrap Searched 1 | . . 1 Spaces Dug 6 | . . 6 Terrain Destroyed 105 | . 6 99 Melee . | . . . Projectile . | . . . AOE 105 | . 6 99 Terrain Rammed . | . . . Walls Destroyed . | . . . Machines Disabled . | . . . Actions | -11 -10 -10 --------- Run | Yrd Mat Min Total 1311 | 1 840 470 Wait 52 | . 35 17 Move 1137 | 1 732 404 Hop . | . . . Pick Up 23 | . 16 7 Fast Attach 4 | . 3 1 Attach 6 | . 2 4 Detach 1 | . 1 . Swap 13 | . 8 5 Drop 18 | . 11 7 Fire 53 | . 29 24 Melee . | . . . Ram . | . . . Kick . | . . . Crush 4 | . 3 1 Escape Stasis . | . . . Rewire . | . . . Trap . | . . . Miscellaneous . | . . . Route ------- -11/Scrapyard -10/Materials (discovered 2 exits: [*Mat] / *Min) -10/Mines (discovered 1 exit: [*Mat]) History --------- Turn | Location | Event 1 | -11/Scrapyard | Discovered new exit (range 1) 3 | -11/Scrapyard | Entered Materials 26 | -10/Materials | Discovered new exit (range 9) 120 | -10/Materials | Discovered new exit (range 10) 342 | -10/Materials | Build established: Mutant 1253 | -10/Materials | Entered Mines 1267 | -10/Mines | Received a Rocket Launcher from a helpful Derelict 1269 | -10/Mines | Discovered new exit (range 6) 1396 | -10/Mines | Learned 8 Materials zone layouts 1564 | -10/Mines | Received a Mining Laser from a helpful Derelict 1661 | -10/Mines | Met a Derelict who couldn't figure out how to use a Trap Extractor 1954 | -10/Mines | Assembled infested the area 1994 | -10/Mines | Core integrity fell below 50% 2000 | -10/Mines | Core integrity fell below 20% 2001 | -10/Mines | Destroyed by D-53 Grenadier with Mini Grenade Launcher Last Messages --------------- 01961_ T-07 Excavator knocked back. 01967_ T-07 Excavator destroyed. 01970_ as-99983 destroyed. 01970_ as-57758 destroyed. 01971_ as-90163 powers down. 01971_ as-65416 powers down. 01973_ HV Slug penetrates Earth. 01986_ C-30 ARC bursts open, deploying its payload. 01986_ D-53 Grenadier unfolds itself. 01986_ Laser Drill disabled. 01991_ Lgt. Ion Engine destroyed. 01991_ Grenade Launcher destroyed. 01994_ U-05 Engineer lays Concrete. 01996_ U-05 Engineer builds a Wall. 01997_ The unstable cave ceiling collapses. 01999_ Lgt. Treads destroyed. 01999_ Rocket Launcher destroyed. 02000_ U-05 Engineer lays Concrete. 02000_ HV Slug penetrates as-65416. Map ----- +----------------------------------------------------+ | ??#### #####?????????### % ! ##??? | | ??### ###??#?######## #####? | | ??## ###??######## ## #####??? | | ??## ####?### #### = =#####???? | | ??####### | ###?## ## ####?????? | | ??######## ##?### # #??????? | | ??????#### ##??## **# #??????? | | ??????### ###?## # ## # #??????? | | ??????## ###?### ## #### ## #??????? | | ??????## ####### ### ###### #####?????? | | ??????### ##### ########### ######????? | | ??????###### #######??## %######????? | | ???????###### ##???????## ##????? | | ??????????#### ###??????###### #####?? | | ???????????#### ##???##?###### #####?? | | ????????????### ##??????????## ##?? | | ?????????????### ## ###??????????## % ##?? | | ?????????????######## ####??????????#####! ###? | | ??????????????####### ###??????########## #### | | ??????????????????### #####????########## ### | | ??????????????????## ######???## ##### ## | | ??????????????????### ######## ### ## | | ??????????????????### ######## ### | | ??????????????????## # ### #### | | ??????????????????## d #### ### | | ?????????????####### @ ##### ## | | ??????????########## u ### | | ??????????##### # % # ###### | | ??????###### d # | | ??????##!* % # | | ??????###%= *aa ######## ## | | ???????###### # ##### ####### ### | | ???????### # # ###### ###???## #### | | ???????" # ##?## ???### ##???### ###? | | ???????##""###?## ????######## ##???### ##?? | | ??????? ????????????######## ########## ###? | | ?????????????????????????????############## #### | | ??????????????????????????????######## ### ### | | ???????????????????????????????## #### ## | | ???????????????????????????????## ## | | ???????????????????????????????## ## | | ??????????????????????????????### ## # ## | | ??????????????????????????????#### ### ## ### | | ??????????????????????????????## ############ | | ??????????????????????????????## """###########? | | ??????????????????????????????## """##?????????? | | ??????????????????????????????## """##?????????? | | ??????????????????????????????## ##?????????? | | ??????????????????????????????#########?????????? | | ??????????????????????????????#########?????????? | +----------------------------------------------------+ Best States ------------- Heat Dissipation 35 Energy Generation 10 Energy Capacity 125 Matter Stores 300 Matter Capacity 350 Sight Range 16 Robot Scan Range 14 Terrain Scan Range 16 Terrain Scan Density 10 Core Shielding 20 Evasion (%) 55 Recoil Reduction 2 Item Schematics ----------------- None Robot Schematics ------------------ None Fabricated ------------ Nothing Alien Tech Used ----------------- None Achievements -------------- None Challenges ------------ None Game ------ Seed SchematicFactoryLegs Manual? 0 Play Time 00:32:03 Cumulative 17.2 hours Start 2024.05.19 @ 19:33:50 End 2024.05.19 @ 20:09:43 Sessions 1 Manual Loads 0 Difficulty Rogue Special Mode None Game No. 14 Rogue 14 Adventurer 0 Explorer 0 Win Type - Total 0 Types 0/0/0/0/0/0/0/0/0 Lore% 17 Gallery% 18 Achievement% 18 Wizard Run 0 Options --------- Layout 2 ASCII 0 Keyboard 1 Movement Numpad Keybinds 0 Fullscreen 2 Font 24/X11 Map View 50x44 Zoom Use 0% Tactical HUD 1 Map Filters NONE Filters NONE Steam 1 RUN: ebbc59ad-cf15-4272-bccf-b76e35de8640